{"text_format":"1","workbook":"xlsx","n_sheets":2,"sheets":["Инструкции и настройка","12 септ"],"not_rendered":{"charts":0,"images":0,"macros":1,"external_links":0,"defined_names":13,"comments":0,"pivot_tables":0},"unopened":[],"bounds":{"document_bytes":16777216,"sheet_cells":100000,"rows_first":2000,"rows_last":500,"rows_between":2000,"halvings":0,"cell_chars":16384,"cell_head_chars":4096},"cells_cut":0,"cells_raw":0,"read":"whole","date_system":"1900"}

{"sheet":"Инструкции и настройка","index":0,"n_rows":23,"n_cols":9,"rows_kept":23,"cut":false,"hidden":false,"merged":[[11,7,11,8],[4,7,4,8],[6,7,6,8],[8,7,8,8],[10,7,10,8],[3,2,3,4],[5,2,5,4],[7,2,7,4],[9,2,9,4],[3,7,3,8],[5,7,5,8],[7,7,7,8],[9,7,9,8]]}
[]
[null,"Инструкции и настройка"]
[]
[null,1,"В таблицата \"Предмети\" по-долу въведете имената на предметите, които искате да следите в този график.",null,null,null,5,"Въведете начална дата за вашия график в клетка A5."]
[]
[null,2,"В таблицата Дейности, също по-долу, променете примерните дейности, така че да отговорят на вашите нужди. ",null,null,null,6,"В ред 4 използвайте падащия списък, за да добавите предметите си към графика. "]
[]
[null,3,"В клетка I14 задайте броя редове, които искате да използвате за домашните работи за всеки ден.",null,null,null,7,"Под всеки предмет добавете домашните си в колоната Домашни."]
[]
[null,4,"В лист с график, като например 12 септ, изпълнете стъпки 5-9.",null,null,null,8,"Изчислете общия брой часове, които са ви необходими за всяко домашно, в колоната с часове, обозначена с икона на часовник."]
[]
[null,null,null,null,null,null,9,"Когато домашното е готово, щракнете двукратно върху колоната с готови, обозначена с отметка, до него."]
[]
[null,null,"Предмети",null,"Дейности",null,null,"Брой редове за всеки ден:",5]
[null,null,"Математика 101",null,"Обсъждане"]
[null,null,"Английски 105",null,"Упражнение"]
[null,null,"Френски 103",null,"Лекция"]
[null,null,"Наука 101",null,"Тест"]
[null,null,"История 101",null,"Четене"]
[null,null,null,null,"Размишляване"]
[null,null,null,null,"Курсов проект"]
[null,null,null,null,"Задание за преглед"]
[null,null,null,null,"Учене"]

{"sheet":"12 септ","index":1,"n_rows":103,"n_cols":24,"rows_kept":103,"cut":false,"hidden":false,"merged":[]}
[]
[null,"Домашна работа"]
[]
[null,"Въведете\nначална дата","Общо"," Предмет:",null,"Математика 101"," Предмет:",null,"Английски 105"," Предмет:",null,"Френски 103"," Предмет:",null,"Наука 101"," Предмет:",null,null," Предмет:",null,null," Предмет:"]
[null,"2011-09-12",null,null,null,"ЗАДАНИЯ",null,null,"ЗАДАНИЯ",null,null,"ЗАДАНИЯ",null,null,"ЗАДАНИЯ",null,null,"ЗАДАНИЯ",null,null,"ЗАДАНИЯ",null,null,"ЗАДАНИЯ"]
[]
[null,{"$f":"Ден_от_графика","v":"2011-09-12"},{"$f":"Общо_часове_за_деня","v":6.5},1,1.5,"Четене",1,2,"Учене",null,1,"Четене",1,1,"Тест"]
[null,{"$f":"Ден_от_графика","v":""},{"$f":"Общо_часове_за_деня","v":""},1,1,"Задание за преглед"]
[null,{"$f":"Ден_от_графика","v":""},{"$f":"Общо_часове_за_деня","v":""}]
[null,{"$f":"Ден_от_графика","v":""},{"$f":"Общо_часове_за_деня","v":""}]
[null,{"$f":"Ден_от_графика","v":""},{"$f":"Общо_часове_за_деня","v":""}]
[null,{"$f":"Ден_от_графика","v":"2011-09-13"},{"$f":"Общо_часове_за_деня","v":0}]
[null,{"$f":"Ден_от_графика","v":""},{"$f":"Общо_часове_за_деня","v":""}]
[null,{"$f":"Ден_от_графика","v":""},{"$f":"Общо_часове_за_деня","v":""}]
[null,{"$f":"Ден_от_графика","v":""},{"$f":"Общо_часове_за_деня","v":""}]
[null,{"$f":"Ден_от_графика","v":""},{"$f":"Общо_часове_за_деня","v":""}]
[null,{"$f":"Ден_от_графика","v":"2011-09-14"},{"$f":"Общо_часове_за_деня","v":0}]
[null,{"$f":"Ден_от_графика","v":""},{"$f":"Общо_часове_за_деня","v":""}]
[null,{"$f":"Ден_от_графика","v":""},{"$f":"Общо_часове_за_деня","v":""}]
[null,{"$f":"Ден_от_графика","v":""},{"$f":"Общо_часове_за_деня","v":""}]
[null,{"$f":"Ден_от_графика","v":""},{"$f":"Общо_часове_за_деня","v":""}]
[null,{"$f":"Ден_от_графика","v":"2011-09-15"},{"$f":"Общо_часове_за_деня","v":0}]
[null,{"$f":"Ден_от_графика","v":""},{"$f":"Общо_часове_за_деня","v":""}]
[null,{"$f":"Ден_от_графика","v":""},{"$f":"Общо_часове_за_деня","v":""}]
[null,{"$f":"Ден_от_графика","v":""},{"$f":"Общо_часове_за_деня","v":""}]
[null,{"$f":"Ден_от_графика","v":""},{"$f":"Общо_часове_за_деня","v":""}]
[null,{"$f":"Ден_от_графика","v":"2011-09-16"},{"$f":"Общо_часове_за_деня","v":0}]
[null,{"$f":"Ден_от_графика","v":""},{"$f":"Общо_часове_за_деня","v":""}]
[null,{"$f":"Ден_от_графика","v":""},{"$f":"Общо_часове_за_деня","v":""}]
[null,{"$f":"Ден_от_графика","v":""},{"$f":"Общо_часове_за_деня","v":""}]
[null,{"$f":"Ден_от_графика","v":""},{"$f":"Общо_часове_за_деня","v":""}]
[null,{"$f":"Ден_от_графика","v":"2011-09-17"},{"$f":"Общо_часове_за_деня","v":0}]
[null,{"$f":"Ден_от_графика","v":""},{"$f":"Общо_часове_за_деня","v":""}]
[null,{"$f":"Ден_от_графика","v":""},{"$f":"Общо_часове_за_деня","v":""}]
[null,{"$f":"Ден_от_графика","v":""},{"$f":"Общо_часове_за_деня","v":""}]
[null,{"$f":"Ден_от_графика","v":""},{"$f":"Общо_часове_за_деня","v":""}]
[null,{"$f":"Ден_от_графика","v":"2011-09-18"},{"$f":"Общо_часове_за_деня","v":0}]
[null,{"$f":"Ден_от_графика","v":""},{"$f":"Общо_часове_за_деня","v":""}]
[null,{"$f":"Ден_от_графика","v":""},{"$f":"Общо_часове_за_деня","v":""}]
[null,{"$f":"Ден_от_графика","v":""},{"$f":"Общо_часове_за_деня","v":""}]
[null,{"$f":"Ден_от_графика","v":""},{"$f":"Общо_часове_за_деня","v":""}]
[null,{"$f":"Ден_от_графика","v":""},{"$f":"Общо_часове_за_деня","v":""}]
[null,{"$f":"Ден_от_графика","v":""},{"$f":"Общо_часове_за_деня","v":""}]
[null,{"$f":"Ден_от_графика","v":""},{"$f":"Общо_часове_за_деня","v":""}]
[null,{"$f":"Ден_от_графика","v":""},{"$f":"Общо_часове_за_деня","v":""}]
[null,{"$f":"Ден_от_графика","v":""},{"$f":"Общо_часове_за_деня","v":""}]
[null,{"$f":"Ден_от_графика","v":""},{"$f":"Общо_часове_за_деня","v":""}]
[null,{"$f":"Ден_от_графика","v":""},{"$f":"Общо_часове_за_деня","v":""}]
[null,{"$f":"Ден_от_графика","v":""},{"$f":"Общо_часове_за_деня","v":""}]
[null,{"$f":"Ден_от_графика","v":""},{"$f":"Общо_часове_за_деня","v":""}]
[null,{"$f":"Ден_от_графика","v":""},{"$f":"Общо_часове_за_деня","v":""}]
[null,{"$f":"Ден_от_графика","v":""},{"$f":"Общо_часове_за_деня","v":""}]
[null,{"$f":"Ден_от_графика","v":""},{"$f":"Общо_часове_за_деня","v":""}]
[null,{"$f":"Ден_от_графика","v":""},{"$f":"Общо_часове_за_деня","v":""}]
[null,{"$f":"Ден_от_графика","v":""},{"$f":"Общо_часове_за_деня","v":""}]
[null,{"$f":"Ден_от_графика","v":""},{"$f":"Общо_часове_за_деня","v":""}]
[null,{"$f":"Ден_от_графика","v":""},{"$f":"Общо_часове_за_деня","v":""}]
[null,{"$f":"Ден_от_графика","v":""},{"$f":"Общо_часове_за_деня","v":""}]
[null,{"$f":"Ден_от_графика","v":""},{"$f":"Общо_часове_за_деня","v":""}]
[null,{"$f":"Ден_от_графика","v":""},{"$f":"Общо_часове_за_деня","v":""}]
[null,{"$f":"Ден_от_графика","v":""},{"$f":"Общо_часове_за_деня","v":""}]
[null,{"$f":"Ден_от_графика","v":""},{"$f":"Общо_часове_за_деня","v":""}]
[null,{"$f":"Ден_от_графика","v":""},{"$f":"Общо_часове_за_деня","v":""}]
[null,{"$f":"Ден_от_графика","v":""},{"$f":"Общо_часове_за_деня","v":""}]
[null,{"$f":"Ден_от_графика","v":""},{"$f":"Общо_часове_за_деня","v":""}]
[null,{"$f":"Ден_от_графика","v":""},{"$f":"Общо_часове_за_деня","v":""}]
[null,{"$f":"Ден_от_графика","v":""},{"$f":"Общо_часове_за_деня","v":""}]
[null,{"$f":"Ден_от_графика","v":""},{"$f":"Общо_часове_за_деня","v":""}]
[null,{"$f":"Ден_от_графика","v":""},{"$f":"Общо_часове_за_деня","v":""}]
[null,{"$f":"Ден_от_графика","v":""},{"$f":"Общо_часове_за_деня","v":""}]
[null,{"$f":"Ден_от_графика","v":""},{"$f":"Общо_часове_за_деня","v":""}]
[null,{"$f":"Ден_от_графика","v":""},{"$f":"Общо_часове_за_деня","v":""}]
[null,{"$f":"Ден_от_графика","v":""},{"$f":"Общо_часове_за_деня","v":""}]
[null,{"$f":"Ден_от_графика","v":""},{"$f":"Общо_часове_за_деня","v":""}]
[null,{"$f":"Ден_от_графика","v":""},{"$f":"Общо_часове_за_деня","v":""}]
[null,{"$f":"Ден_от_графика","v":""},{"$f":"Общо_часове_за_деня","v":""}]
[null,{"$f":"Ден_от_графика","v":""},{"$f":"Общо_часове_за_деня","v":""}]
[null,{"$f":"Ден_от_графика","v":""},{"$f":"Общо_часове_за_деня","v":""}]
[null,{"$f":"Ден_от_графика","v":""},{"$f":"Общо_часове_за_деня","v":""}]
[null,{"$f":"Ден_от_графика","v":""},{"$f":"Общо_часове_за_деня","v":""}]
[null,{"$f":"Ден_от_графика","v":""},{"$f":"Общо_часове_за_деня","v":""}]
[null,{"$f":"Ден_от_графика","v":""},{"$f":"Общо_часове_за_деня","v":""}]
[null,{"$f":"Ден_от_графика","v":""},{"$f":"Общо_часове_за_деня","v":""}]
[null,{"$f":"Ден_от_графика","v":""},{"$f":"Общо_часове_за_деня","v":""}]
[null,{"$f":"Ден_от_графика","v":""},{"$f":"Общо_часове_за_деня","v":""}]
[null,{"$f":"Ден_от_графика","v":""},{"$f":"Общо_часове_за_деня","v":""}]
[null,{"$f":"Ден_от_графика","v":""},{"$f":"Общо_часове_за_деня","v":""}]
[null,{"$f":"Ден_от_графика","v":""},{"$f":"Общо_часове_за_деня","v":""}]
[null,{"$f":"Ден_от_графика","v":""},{"$f":"Общо_часове_за_деня","v":""}]
[null,{"$f":"Ден_от_графика","v":""},{"$f":"Общо_часове_за_деня","v":""}]
[null,{"$f":"Ден_от_графика","v":""},{"$f":"Общо_часове_за_деня","v":""}]
[null,{"$f":"Ден_от_графика","v":""},{"$f":"Общо_часове_за_деня","v":""}]
[null,{"$f":"Ден_от_графика","v":""},{"$f":"Общо_часове_за_деня","v":""}]
[null,{"$f":"Ден_от_графика","v":""},{"$f":"Общо_часове_за_деня","v":""}]
[null,{"$f":"Ден_от_графика","v":""},{"$f":"Общо_часове_за_деня","v":""}]
[null,{"$f":"Ден_от_графика","v":""},{"$f":"Общо_часове_за_деня","v":""}]
[null,{"$f":"Ден_от_графика","v":""},{"$f":"Общо_часове_за_деня","v":""}]
[null,{"$f":"Ден_от_графика","v":""},{"$f":"Общо_часове_за_деня","v":""}]
[null,{"$f":"Ден_от_графика","v":""},{"$f":"Общо_часове_за_деня","v":""}]
[null,{"$f":"Ден_от_графика","v":""},{"$f":"Общо_часове_за_деня","v":""}]
[null,{"$f":"Ден_от_графика","v":""},{"$f":"Общо_часове_за_деня","v":""}]
[null,{"$f":"Ден_от_графика","v":""},{"$f":"Общо_часове_за_деня","v":""}]
[null,{"$f":"Ден_от_графика","v":""},{"$f":"Общо_часове_за_деня","v":""}]